[Event "Djerba Festival Open-B 2025"]
[Site "Djerba"]
[Date "2025.02.17"]
[Round "2.10"]
[White "Charfeddine, Akram"]
[Black "Benzarti, Thabet"]
[Result "1-0"]
[Annotator "NA"]
[ECO "D02"]
[WhiteElo "1915"]
[BlackElo "1664"]
[PlyCount "75"]
[EventDate "2025.02.15"]
[EventType "swiss"]
[EventCountry "TUN"]
[SourceTitle "playchess.com"]
[Source "ChessBase"]
[SourceQuality "1"]
[TimeControl "5400+30"]

1. d4 {[%emt 0:05:28]} d5 {[%emt 0:00:25]} 2. Bf4 {[%emt 0:00:39]} Nf6 {[%emt 0:00:22]} 3. e3 {[%emt 0:01:01]} e6 {[%emt 0:00:28]} 4. Bd3 {[%emt 0:01:57]} Bd6 {[%emt 0:00:54]} 5. Bg3 {[%emt 0:00:47]} O-O {[%emt 0:01:01]} 6. Nf3 {[%emt 0:01:17]} b6 {[%emt 0:02:26]} 7. Nbd2 {[%emt 0:06:50]} Bb7 {[%emt 0:01:36]} 8. Ne5 {[%emt 0:02:05]} c5 {[%emt 0:01:32]} 9. c3 {[%emt 0:00:26]} Nc6 {[%emt 0:01:32]} 10. f4 {[%emt 0:05:40]} Ne7 {[%emt 0:07:38]} 11. Qf3 {[%emt 0:07:12]} c4 {[%emt 0:11:07]} 12. Bxc4 {[%emt 0:05:28]} Ne4 {[%emt 0:06:41]} 13. Bd3 {[%emt 0:02:15]} f6 {[%emt 0:08:43]} 14. Ng4 {[%emt 0:02:47]} f5 {[%emt 0:01:39]} 15. Ne5 {[%emt 0:00:52]} Qc7 {[%emt 0:00:58]} 16. Qe2 {[%emt 0:02:56]} Rf6 {[%emt 0:04:22]} 17. Bh4 {[%emt 0:07:07]} Rh6 {[%emt 0:00:34]} 18. Bxe4 {[%emt 0:06:09]} Rxh4 {[%emt 0:00:49]} 19. Bf3 {[%emt 0:01:27]} Rh6 {[%emt 0:02:15]} 20. g3 {[%emt 0:03:25]} a5 {[%emt 0:04:19]} 21. h4 {[%emt 0:02:02]} Rf6 {[%emt 0:01:21]} 22. a3 {[%emt 0:04:27]} Ba6 {[%emt 0:02:30]} 23. Qd1 {[%emt 0:01:38]} b5 {[%emt 0:01:44]} 24. Rc1 {[%emt 0:02:39]} Rc8 {[%emt 0:02:04]} 25. Kf2 {[%emt 0:01:48]} a4 {[%emt 0:02:47]} 26. Be2 {[%emt 0:01:22]} Qb7 {[%emt 0:01:52]} 27. Ndf3 {[%emt 0:04:55]} Rd8 {[%emt 0:02:12]} 28. Nd3 {[%emt 0:00:40]} Qb8 {[%emt 0:01:03]} 29. Nb4 {[%emt 0:00:29]} Bc8 {[%emt 0:00:29]} 30. Ne5 {[%emt 0:01:16]} Qb6 {[%emt 0:01:07]} 31. Qf1 {[%emt 0:00:30]} Bxb4 {[%emt 0:01:31]} 32. cxb4 {[%emt 0:00:24]} Ba6 {[%emt 0:00:22]} 33. Rc5 {[%emt 0:00:47]} Ng6 {[%emt 0:01:53]} 34. Bxb5 {[%emt 0:00:48]} Bxb5 {[%emt 0:00:21]} 35. Qxb5 {[%emt 0:00:32]} Qxb5 {[%emt 0:00:15]} 36. Rxb5 {[%emt 0:00:08]} Nxe5 {[%emt 0:00:09]} 37. fxe5 {[%emt 0:00:40]} Rf7 {[%emt 0:00:14]} 38. Rc1 {[%emt 0:00:20]} 1-0

[Event "Djerba Festival Open-B 2025"]
[Site "Djerba"]
[Date "2025.02.17"]
[Round "2.11"]
[White "Mathanchandaran, Dev"]
[Black "Algadari, Mahmod"]
[Result "0-1"]
[Annotator "NA"]
[ECO "B08"]
[WhiteElo "1650"]
[BlackElo "1909"]
[PlyCount "68"]
[EventDate "2025.02.15"]
[EventType "swiss"]
[EventCountry "TUN"]
[SourceTitle "playchess.com"]
[Source "ChessBase"]
[SourceQuality "1"]
[TimeControl "5400+30"]

1. e4 {[%emt 0:00:03]} d6 {[%emt 0:00:16]} 2. d4 {[%emt 0:00:13]} Nf6 {[%emt 0:00:10]} 3. Nc3 {[%emt 0:00:23]} g6 {[%emt 0:00:11]} 4. Nf3 {[%emt 0:00:53]} Bg7 {[%emt 0:00:02]} 5. Bc4 {[%emt 0:02:02]} O-O {[%emt 0:00:22]} 6. Bf4 {[%emt 0:05:55]} c6 {[%emt 0:03:28]} 7. e5 {[%emt 0:04:28]} dxe5 {[%emt 0:03:07]} 8. dxe5 {[%emt 0:01:28]} Nh5 {[%emt 0:25:07]} 9. Bg3 {[%emt 0:07:57]} Nxg3 {[%emt 0:03:20]} 10. hxg3 {[%emt 0:01:00]} Qb6 {[%emt 0:02:01]} 11. Bb3 {[%emt 0:04:27]} Bg4 {[%emt 0:01:49]} 12. Qe2 {[%emt 0:01:13]} Qc5 {[%emt 0:06:37]} 13. O-O-O {[%emt 0:07:02]} Bxf3 {[%emt 0:04:01]} 14. Qxf3 {[%emt 0:00:35]} Qxe5 {[%emt 0:08:25]} 15. Rhe1 {[%emt 0:03:34]} Qg5+ {[%emt 0:00:14]} 16. Kb1 {[%emt 0:00:49]} e6 {[%emt 0:09:28]} 17. Ne4 {[%emt 0:05:43]} Qe7 {[%emt 0:01:35]} 18. Qe3 {[%emt 0:06:39]} Nd7 {[%emt 0:03:59]} 19. Rh1 {[%emt 0:03:11]} a5 {[%emt 0:03:46]} 20. a4 {[%emt 0:03:51]} Rfd8 {[%emt 0:02:05]} 21. Ng5 {[%emt 0:05:26]} Nf6 {[%emt 0:02:59]} 22. Qb6 {[%emt 0:03:40]} Rxd1+ {[%emt 0:04:48]} 23. Rxd1 {[%emt 0:00:02]} Nd5 {[%emt 0:00:09]} 24. Bxd5 {[%emt 0:00:28]} exd5 {[%emt 0:00:02]} 25. Nf3 {[%emt 0:01:20]} Ra6 {[%emt 0:05:12]} 26. Qb3 {[%emt 0:00:49]} Qc7 {[%emt 0:00:21]} 27. Re1 {[%emt 0:01:02]} h6 {[%emt 0:02:08]} 28. Qd3 {[%emt 0:01:37]} Rb6 {[%emt 0:00:36]} 29. b3 {[%emt 0:00:23]} Qd6 {[%emt 0:00:59]} 30. Ka2 {[%emt 0:00:31]} Qf6 {[%emt 0:01:14]} 31. Rb1 {[%emt 0:00:19]} Rb4 {[%emt 0:00:33]} 32. Qe3 {[%emt 0:00:58]} Re4 {[%emt 0:00:43]} 33. Qb6 {[%emt 0:00:25]} Qc3 {[%emt 0:01:39]} 34. Ka3 {[%emt 0:02:12]} Qxc2 {[%emt 0:01:35]} 0-1

[Event "Djerba Festival Open-B 2025"]
[Site "Djerba"]
[Date "2025.02.17"]
[Round "2.12"]
[White "Rafik yassine"]
[Black "Falezan, Arnaud"]
[Result "1-0"]
[Annotator "NA"]
[ECO "A20"]
[WhiteElo "1909"]
[BlackElo "1662"]
[PlyCount "115"]
[EventDate "2025.02.15"]
[EventType "swiss"]
[EventCountry "TUN"]
[SourceTitle "playchess.com"]
[Source "ChessBase"]
[SourceQuality "1"]
[TimeControl "5400+30"]

1. c4 {[%emt 0:00:14]} e5 {[%emt 0:00:17]} 2. g3 {[%emt 0:00:06]} c6 {[%emt 0:00:20]} 3. Bg2 {[%emt 0:00:12]} d5 {[%emt 0:00:18]} 4. cxd5 {[%emt 0:00:16]} cxd5 {[%emt 0:00:16]} 5. d4 {[%emt 0:01:00]} e4 {[%emt 0:00:41]} 6. Nh3 {[%emt 0:00:42]} Be7 {[%emt 0:02:46]} 7. Nc3 {[%emt 0:00:50]} Nc6 {[%emt 0:04:06]} 8. O-O {[%emt 0:05:58]} Nf6 {[%emt 0:00:52]} 9. Bg5 {[%emt 0:00:28]} O-O {[%emt 0:00:47]} 10. e3 {[%emt 0:00:34]} Be6 {[%emt 0:04:21]} 11. Bxf6 {[%emt 0:00:24]} Bxf6 {[%emt 0:00:27]} 12. Nf4 {[%emt 0:01:27]} Qd7 {[%emt 0:03:49]} 13. f3 {[%emt 0:03:29]} exf3 {[%emt 0:01:31]} 14. Qxf3 {[%emt 0:00:46]} Rfe8 {[%emt 0:15:25]} 15. Ncxd5 {[%emt 0:02:54]} Bxd5 {[%emt 0:03:00]} 16. Nxd5 {[%emt 0:01:29]} Bg5 {[%emt 0:09:11]} 17. Rae1 {[%emt 0:08:51]} g6 {[%emt 0:16:42]} 18. h4 {[%emt 0:14:52]} Bd8 {[%emt 0:00:24]} 19. h5 {[%emt 0:02:40]} f5 {[%emt 0:02:18]} 20. hxg6 {[%emt 0:01:30]} hxg6 {[%emt 0:00:40]} 21. Nf4 {[%emt 0:00:42]} Kg7 {[%emt 0:02:02]} 22. Qd5 {[%emt 0:03:48]} Qxd5 {[%emt 0:05:10]} 23. Bxd5 {[%emt 0:00:12]} Bb6 {[%emt 0:05:00]} 24. Bxc6 {[%emt 0:03:58]} bxc6 {[%emt 0:00:39]} 25. Kf2 {[%emt 0:01:23]} Re4 {[%emt 0:06:27]} 26. Rc1 {[%emt 0:01:36]} Rae8 {[%emt 0:01:52]} 27. Rfe1 {[%emt 0:00:56]} g5 {[%emt 0:06:22]} 28. Nd3 {[%emt 0:01:40]} R8e6 {[%emt 0:03:27]} 29. Nc5 {[%emt 0:03:13]} Bxc5 {[%emt 0:00:15]} 30. Rxc5 {[%emt 0:00:22]} Kg6 {[%emt 0:00:33]} 31. Ra5 {[%emt 0:03:33]} f4 {[%emt 0:00:36]} 32. gxf4 {[%emt 0:00:24]} gxf4 {[%emt 0:00:22]} 33. Ra3 {[%emt 0:02:08]} Kf5 {[%emt 0:01:42]} 34. Kf3 {[%emt 0:01:26]} Rxd4 {[%emt 0:01:13]} 35. exd4 {[%emt 0:02:38]} Rxe1 {[%emt 0:00:08]} 36. Ra5+ {[%emt 0:00:08]} Ke6 {[%emt 0:00:43]} 37. Kxf4 {[%emt 0:00:14]} Kd6 {[%emt 0:00:46]} 38. Rxa7 {[%emt 0:01:02]} Re2 {[%emt 0:02:12]} 39. b3 {[%emt 0:00:22]} Re8 {[%emt 0:01:36]} 40. Ra5 {[%emt 0:00:30]} Re2 {[%emt 0:00:30]} 41. Kf3 {[%emt 0:00:21]} Re7 {[%emt 0:00:32]} 42. Re5 {[%emt 0:01:08]} Rxe5 {[%emt 0:00:16]} 43. dxe5+ {[%emt 0:00:07]} Kxe5 {[%emt 0:00:02]} 44. Ke3 {[%emt 0:00:15]} Kd5 {[%emt 0:00:26]} 45. Kd3 {[%emt 0:00:07]} Kc5 {[%emt 0:01:07]} 46. Kc3 {[%emt 0:00:08]} Kb5 {[%emt 0:00:35]} 47. a3 {[%emt 0:00:59]} c5 {[%emt 0:00:35]} 48. a4+ {[%emt 0:02:07]} Kb6 {[%emt 0:00:18]} 49. Kc4 {[%emt 0:00:20]} Kc6 {[%emt 0:00:41]} 50. a5 {[%emt 0:00:10]} Kd6 {[%emt 0:00:38]} 51. Kb5 {[%emt 0:00:11]} Kc7 {[%emt 0:00:26]} 52. Kxc5 {[%emt 0:00:13]} Kb7 {[%emt 0:00:20]} 53. b4 {[%emt 0:00:17]} Ka7 {[%emt 0:00:15]} 54. Kc6 {[%emt 0:00:36]} Kb8 {[%emt 0:00:33]} 55. Kb6 {[%emt 0:00:08]} Ka8 {[%emt 0:00:12]} 56. Kc7 {[%emt 0:00:56]} Ka7 {[%emt 0:00:18]} 57. b5 {[%emt 0:00:17]} Ka8 {[%emt 0:00:03]} 58. a6 {[%emt 0:30:25]} 1-0

[Event "Djerba Festival Open-B 2025"]
[Site "Djerba"]
[Date "2025.02.17"]
[Round "2.13"]
[White "Abokrais, Kaled"]
[Black "Chaouech, Oussama"]
[Result "1/2-1/2"]
[Annotator "NA"]
[ECO "C01"]
[WhiteElo "1902"]
[BlackElo "1651"]
[PlyCount "69"]
[EventDate "2025.02.15"]
[EventType "swiss"]
[EventCountry "TUN"]
[SourceTitle "playchess.com"]
[Source "ChessBase"]
[SourceQuality "1"]
[TimeControl "5400+30"]

1. e4 {[%emt 0:00:39]} e6 {[%emt 0:00:11]} 2. Nc3 {[%emt 0:02:20]} d5 {[%emt 0:00:38]} 3. exd5 {[%emt 0:00:11]} exd5 {[%emt 0:00:13]} 4. d4 {[%emt 0:00:04]} Nf6 {[%emt 0:01:06]} 5. Nf3 {[%emt 0:00:32]} Bf5 {[%emt 0:02:14]} 6. Bd3 {[%emt 0:00:34]} Bxd3 {[%emt 0:04:18]} 7. Qxd3 {[%emt 0:00:01]} c6 {[%emt 0:02:03]} 8. O-O {[%emt 0:00:41]} Be7 {[%emt 0:00:23]} 9. Re1 {[%emt 0:00:15]} O-O {[%emt 0:03:15]} 10. h3 {[%emt 0:00:08]} Qd6 {[%emt 0:01:51]} 11. Bg5 {[%emt 0:01:22]} Nbd7 {[%emt 0:01:17]} 12. Ne5 {[%emt 0:00:41]} Rfe8 {[%emt 0:04:59]} 13. Re2 {[%emt 0:00:35]} Nh5 {[%emt 0:03:06]} 14. Bxe7 {[%emt 0:01:09]} Rxe7 {[%emt 0:00:51]} 15. Qf3 {[%emt 0:00:18]} Nhf6 {[%emt 0:01:11]} 16. Rae1 {[%emt 0:00:14]} Rae8 {[%emt 0:00:44]} 17. Nxd7 {[%emt 0:03:22]} Nxd7 {[%emt 0:05:12]} 18. a3 {[%emt 0:01:01]} Nf6 {[%emt 0:04:50]} 19. Qf5 {[%emt 0:05:33]} g6 {[%emt 0:04:36]} 20. Qf3 {[%emt 0:03:27]} Kg7 {[%emt 0:00:54]} 21. Rxe7 {[%emt 0:08:43]} Rxe7 {[%emt 0:00:16]} 22. Re3 {[%emt 0:00:49]} Rxe3 {[%emt 0:02:52]} 23. Qxe3 {[%emt 0:00:26]} Qe6 {[%emt 0:02:24]} 24. Qxe6 {[%emt 0:00:28]} fxe6 {[%emt 0:00:11]} 25. f3 {[%emt 0:00:33]} Nd7 {[%emt 0:00:56]} 26. Kf2 {[%emt 0:02:51]} Kf6 {[%emt 0:03:19]} 27. Ke3 {[%emt 0:01:06]} e5 {[%emt 0:03:17]} 28. Ne2 {[%emt 0:02:17]} Ke6 {[%emt 0:03:54]} 29. dxe5 {[%emt 0:08:16]} Nxe5 {[%emt 0:01:35]} 30. b3 {[%emt 0:02:34]} c5 {[%emt 0:04:16]} 31. f4 {[%emt 0:02:17]} Nc6 {[%emt 0:01:02]} 32. g4 {[%emt 0:01:27]} b5 {[%emt 0:00:38]} 33. Ng3 {[%emt 0:04:06]} Nd4 {[%emt 0:01:15]} 34. Kd3 {[%emt 0:01:17]} Nf3 {[%emt 0:03:59]} 35. c3 {[%emt 0:11:07]} 1/2-1/2

[Event "Djerba Festival Open-B 2025"]
[Site "Djerba"]
[Date "2025.02.17"]
[Round "2.14"]
[White "Baroukh, Pau"]
[Black "Minde, Baptiste"]
[Result "0-1"]
[Annotator "NA"]
[ECO "E10"]
[WhiteElo "1649"]
[BlackElo "1896"]
[PlyCount "46"]
[EventDate "2025.02.15"]
[EventType "swiss"]
[EventCountry "TUN"]
[SourceTitle "playchess.com"]
[Source "ChessBase"]
[SourceQuality "1"]
[TimeControl "5400+30"]

1. Nf3 {[%emt 0:00:21]} Nf6 {[%emt 0:00:14]} 2. c4 {[%emt 0:00:35]} e6 {[%emt 1:31:16]} 3. d4 {[%emt 0:00:34]} c5 {[%emt 0:00:00]} 4. d5 {[%emt 0:00:22]} b5 {[%emt 0:00:00]} 5. b3 {[%emt 0:01:30]} Bb7 {[%emt 0:00:00]} 6. dxe6 {[%emt 0:01:19]} fxe6 {[%emt 0:00:00]} 7. Nbd2 {[%emt 0:02:27]} Be7 {[%emt 0:00:00]} 8. e3 {[%emt 0:02:48]} O-O {[%emt 0:00:00]} 9. Be2 {[%emt 0:01:48]} d5 {[%emt 0:00:00]} 10. Bb2 {[%emt 0:03:06]} bxc4 {[%emt 0:00:00]} 11. bxc4 {[%emt 0:00:07]} Nc6 {[%emt 0:00:00]} 12. Qb1 {[%emt 0:11:24]} d4 {[%emt 0:00:00]} 13. Bxd4 {[%emt 0:03:44]} cxd4 {[%emt 0:00:00]} 14. Qxb7 {[%emt 0:00:48]} dxe3 {[%emt 0:00:00]} 15. Qxc6 {[%emt 0:02:46]} exd2+ {[%emt 0:00:00]} 16. Nxd2 {[%emt 0:00:24]} Bb4 {[%emt 0:00:00]} 17. Qxe6+ {[%emt 0:01:33]} Kh8 {[%emt 0:07:30]} 18. Qe3 {[%emt 0:01:40]} Re8 {[%emt 0:00:00]} 19. Qe6 {[%emt 0:00:00]} Rf8 20. Qe3 {[%emt 0:01:00]} Re8 {[%emt 0:00:00]} 21. Qf4 {[%emt 0:04:37]} Re4 {[%emt 0:00:00]} 22. Qf3 {[%emt 0:02:32]} Qxd2+ {[%emt 0:00:00]} 23. Kf1 {[%emt 0:00:09]} Rae8 {[%emt 0:00:00]} 0-1

[Event "Djerba Festival Open-B 2025"]
[Site "Djerba"]
[Date "2025.02.17"]
[Round "2.15"]
[White "Ferahi, Tarik"]
[Black "Schmittheisler, Guillaume"]
[Result "0-1"]
[Annotator "NA"]
[ECO "C10"]
[WhiteElo "1612"]
[BlackElo "1888"]
[PlyCount "94"]
[EventDate "2025.02.15"]
[EventType "swiss"]
[EventCountry "TUN"]
[SourceTitle "playchess.com"]
[Source "ChessBase"]
[SourceQuality "1"]
[TimeControl "5400+30"]

1. e4 {[%emt 1:31:00]} e6 {[%emt 1:31:00]} 2. d4 {[%emt 0:00:30]} d5 {[%emt 0:00:30]} 3. Nc3 {[%emt 0:00:30]} dxe4 {[%emt 0:00:30]} 4. Nxe4 {[%emt 0:00:30]} Nd7 {[%emt 0:00:30]} 5. Nf3 {[%emt 0:00:30]} Ngf6 {[%emt 0:00:30]} 6. Bd3 {[%emt 0:00:30]} Nxe4 {[%emt 0:00:30]} 7. Bxe4 {[%emt 0:00:30]} Nf6 {[%emt 0:00:30]} 8. Bd3 {[%emt 0:00:30]} c5 {[%emt 0:00:30]} 9. c3 {[%emt 0:00:30]} cxd4 {[%emt 0:00:30]} 10. cxd4 {[%emt 0:00:30]} Bb4+ {[%emt 0:00:30]} 11. Bd2 {[%emt 0:00:30]} Qa5 {[%emt 0:00:30]} 12. O-O {[%emt 0:00:30]} Bxd2 {[%emt 0:00:30]} 13. Qxd2 {[%emt 0:00:30]} Qxd2 14. Nxd2 Bd7 {[%emt 0:01:00]} 15. Ne4 {[%emt 0:01:00]} Bc6 {[%emt 0:00:30]} 16. Nxf6+ {[%emt 0:00:30]} gxf6 {[%emt 0:00:30]} 17. Rfd1 {[%emt 0:00:30]} Ke7 {[%emt 0:00:30]} 18. a4 {[%emt 0:00:30]} Rhd8 {[%emt 0:00:30]} 19. Be2 {[%emt 0:00:30]} Rd6 {[%emt 0:00:30]} 20. b4 {[%emt 0:00:30]} Rad8 {[%emt 0:00:30]} 21. b5 {[%emt 0:00:30]} Be4 {[%emt 0:00:30]} 22. f3 {[%emt 0:00:30]} Bg6 {[%emt 0:00:30]} 23. Rac1 {[%emt 0:00:30]} Rxd4 {[%emt 0:00:30]} 24. Rxd4 {[%emt 0:00:30]} Rxd4 {[%emt 0:00:30]} 25. Rc7+ {[%emt 0:00:30]} Rd7 {[%emt 0:00:30]} 26. Rc8 {[%emt 0:00:30]} Kd6 {[%emt 0:00:30]} 27. f4 {[%emt 0:00:30]} Rc7 {[%emt 0:00:30]} 28. Rxc7 {[%emt 0:00:30]} Kxc7 {[%emt 0:00:30]} 29. Kf2 {[%emt 0:00:30]} b6 {[%emt 0:00:30]} 30. Bd1 {[%emt 0:00:30]} Kd6 {[%emt 0:00:30]} 31. Ke3 {[%emt 0:00:30]} Kc5 {[%emt 0:00:30]} 32. h4 {[%emt 0:00:30]} Kc4 {[%emt 0:00:30]} 33. g4 {[%emt 0:00:30]} Bb1 {[%emt 0:00:30]} 34. h5 {[%emt 0:00:30]} h6 {[%emt 0:00:30]} 35. Bf3 {[%emt 0:00:30]} Bh7 {[%emt 0:00:30]} 36. g5 {[%emt 0:00:30]} fxg5 {[%emt 0:00:30]} 37. fxg5 {[%emt 0:00:30]} hxg5 {[%emt 0:00:30]} 38. Be4 {[%emt 0:00:30]} f5 {[%emt 0:00:30]} 39. Bc6 {[%emt 0:00:30]} Kc5 {[%emt 0:00:30]} 40. Be8 {[%emt 0:00:30]} Kd6 {[%emt 0:00:30]} 41. Kd4 {[%emt 0:00:30]} e5+ {[%emt 0:00:30]} 42. Kc4 {[%emt 0:00:30]} Bg8+ {[%emt 0:00:30]} 43. Kd3 {[%emt 0:00:30]} Ke7 {[%emt 0:00:30]} 44. Bg6 {[%emt 0:00:30]} Kf6 {[%emt 0:00:30]} 45. Kc3 {[%emt 0:00:30]} g4 {[%emt 0:00:30]} 46. Be8 {[%emt 0:00:30]} g3 {[%emt 0:00:30]} 47. Bc6 {[%emt 0:00:30]} e4 {[%emt 0:00:30]} 0-1

[Event "Djerba Festival Open-B 2025"]
[Site "Djerba"]
[Date "2025.02.17"]
[Round "2.16"]
[White "Tkitek Mohamed Mejed"]
[Black "Nahom, Perez"]
[Result "1-0"]
[Annotator "NA"]
[ECO "D77"]
[WhiteElo "1875"]
[BlackElo "1641"]
[PlyCount "37"]
[EventDate "2025.02.15"]
[EventType "swiss"]
[EventCountry "TUN"]
[SourceTitle "playchess.com"]
[Source "ChessBase"]
[SourceQuality "1"]
[TimeControl "5400+30"]

1. c4 {[%emt 0:00:07]} Nf6 {[%emt 0:00:19]} 2. g3 {[%emt 0:00:12]} e6 {[%emt 0:00:32]} 3. Bg2 {[%emt 0:00:10]} d5 {[%emt 0:02:01]} 4. Nf3 {[%emt 0:00:50]} Nc6 {[%emt 0:03:21]} 5. O-O {[%emt 0:02:47]} g6 {[%emt 0:03:20]} 6. Nc3 {[%emt 0:03:22]} Bg7 {[%emt 0:04:19]} 7. d4 {[%emt 0:02:52]} O-O {[%emt 0:01:32]} 8. Bf4 {[%emt 0:00:58]} Nh5 {[%emt 0:03:28]} 9. Bg5 {[%emt 0:01:44]} Nf6 {[%emt 0:04:15]} 10. Qd2 {[%emt 0:01:01]} Re8 {[%emt 0:02:23]} 11. Ne5 {[%emt 0:03:23]} Ne7 {[%emt 0:04:23]} 12. Qf4 {[%emt 0:03:40]} Nh5 {[%emt 0:09:11]} 13. Qf5 {[%emt 1:15:54]} Kh8 14. Qxf7 {[%emt 0:00:00]} Bxe5 {[%emt 0:04:42]} 15. g4 {[%emt 0:00:00]} Ng7 16. dxe5 {[%emt 0:00:00]} Rg8 {[%emt 0:01:54]} 17. Bf6 {[%emt 0:00:00]} Qe8 18. cxd5 {[%emt 0:00:00]} Bd7 19. Qxe7 {[%emt 0:00:00]} 1-0

[Event "Djerba Festival Open-B 2025"]
[Site "Djerba"]
[Date "2025.02.17"]
[Round "2.17"]
[White "Raymond, Andre"]
[Black "Zenaidi, Sadok"]
[Result "0-1"]
[Annotator "NA"]
[ECO "B15"]
[WhiteElo "1610"]
[BlackElo "1872"]
[PlyCount "62"]
[EventDate "2025.02.15"]
[EventType "swiss"]
[EventCountry "TUN"]
[SourceTitle "playchess.com"]
[Source "ChessBase"]
[SourceQuality "1"]
[TimeControl "5400+30"]

1. e4 {[%emt 1:31:00]} c6 {[%emt 1:31:00]} 2. d4 {[%emt 0:00:30]} d5 {[%emt 0:00:30]} 3. Nc3 {[%emt 0:00:30]} dxe4 {[%emt 0:00:30]} 4. Nxe4 {[%emt 0:00:30]} Nf6 {[%emt 0:00:30]} 5. Nxf6+ {[%emt 0:00:30]} exf6 {[%emt 0:00:30]} 6. Nf3 {[%emt 0:00:30]} Bd6 {[%emt 0:00:30]} 7. Qe2+ {[%emt 0:00:30]} Be6 {[%emt 0:00:30]} 8. Be3 {[%emt 0:00:30]} O-O {[%emt 0:00:30]} 9. c3 {[%emt 0:00:30]} Re8 {[%emt 0:00:30]} 10. Qc2 {[%emt 0:00:30]} Nd7 {[%emt 0:00:30]} 11. Bd3 {[%emt 0:00:30]} Nf8 {[%emt 0:00:30]} 12. O-O {[%emt 0:00:30]} Qc7 {[%emt 0:00:30]} 13. g3 {[%emt 0:00:30]} Qa5 {[%emt 0:00:30]} 14. Be2 {[%emt 0:00:30]} Ng6 {[%emt 0:00:30]} 15. b4 {[%emt 0:00:30]} Qc7 {[%emt 0:00:30]} 16. a3 {[%emt 0:00:30]} f5 {[%emt 0:00:30]} 17. c4 {[%emt 0:00:30]} f4 {[%emt 0:00:30]} 18. c5 {[%emt 0:00:30]} fxe3 {[%emt 0:00:30]} 19. cxd6 {[%emt 0:00:30]} exf2+ {[%emt 0:00:30]} 20. Rxf2 {[%emt 0:00:30]} Qxd6 {[%emt 0:00:30]} 21. Bd3 {[%emt 0:00:30]} a5 {[%emt 0:00:30]} 22. b5 {[%emt 0:00:30]} Bg4 {[%emt 0:00:30]} 23. bxc6 {[%emt 0:00:30]} Bxf3 {[%emt 0:00:30]} 24. Rxf3 {[%emt 0:00:30]} Qxd4+ {[%emt 0:00:30]} 25. Kg2 {[%emt 0:00:30]} Qxa1 {[%emt 0:00:30]} 26. cxb7 {[%emt 0:00:30]} Rab8 {[%emt 0:00:30]} 27. Qc7 {[%emt 0:00:30]} Qb2+ {[%emt 0:00:30]} 28. Kh3 {[%emt 0:00:30]} Rxb7 {[%emt 0:00:30]} 29. Qc6 {[%emt 0:00:30]} Rf8 {[%emt 0:00:30]} 30. Bc4 {[%emt 0:00:30]} Ne5 {[%emt 0:00:30]} 31. Bxf7+ {[%emt 0:00:30]} Rbxf7 {[%emt 0:00:30]} 0-1

[Event "Djerba Festival Open-B 2025"]
[Site "Djerba"]
[Date "2025.02.17"]
[Round "2.18"]
[White "Chavallard, Yanis"]
[Black "Cornileau, Raphael"]
[Result "0-1"]
[Annotator "NA"]
[ECO "E18"]
[WhiteElo "1605"]
[BlackElo "1864"]
[PlyCount "96"]
[EventDate "2025.02.15"]
[EventType "swiss"]
[EventCountry "TUN"]
[SourceTitle "playchess.com"]
[Source "ChessBase"]
[SourceQuality "1"]
[TimeControl "5400+30"]

1. c4 {[%emt 0:00:03]} e6 {[%emt 0:00:05]} 2. g3 {[%emt 0:00:12]} Nf6 {[%emt 0:00:27]} 3. Nf3 {[%emt 0:00:29]} b6 {[%emt 0:00:18]} 4. Bg2 {[%emt 0:01:00]} Bb7 {[%emt 0:00:04]} 5. O-O {[%emt 0:00:44]} Be7 {[%emt 0:00:38]} 6. Nc3 {[%emt 0:01:09]} O-O {[%emt 0:00:09]} 7. b3 {[%emt 0:04:04]} d5 {[%emt 0:06:05]} 8. Ne5 {[%emt 0:05:41]} Nbd7 {[%emt 0:02:41]} 9. d4 {[%emt 0:00:37]} Ne4 {[%emt 0:02:38]} 10. Nxe4 {[%emt 0:05:37]} dxe4 {[%emt 0:01:16]} 11. Nxd7 {[%emt 0:01:33]} Qxd7 {[%emt 0:00:19]} 12. Bb2 {[%emt 0:00:16]} c5 {[%emt 0:04:45]} 13. e3 {[%emt 0:04:15]} Rad8 {[%emt 0:08:04]} 14. Qc2 {[%emt 0:05:01]} Qc6 {[%emt 0:03:48]} 15. Rad1 {[%emt 0:03:04]} f5 {[%emt 0:05:05]} 16. Rd2 {[%emt 0:03:38]} Rd7 {[%emt 0:01:58]} 17. Rfd1 {[%emt 0:01:51]} Rfd8 {[%emt 0:00:15]} 18. dxc5 {[%emt 0:00:46]} bxc5 {[%emt 0:02:58]} 19. Rxd7 {[%emt 0:01:04]} Rxd7 {[%emt 0:00:05]} 20. Rxd7 {[%emt 0:01:39]} Qxd7 {[%emt 0:00:06]} 21. Be5 {[%emt 0:02:35]} Bd8 {[%emt 0:02:28]} 22. a3 {[%emt 0:03:09]} Bc6 {[%emt 0:03:55]} 23. Bf1 {[%emt 0:01:07]} a5 {[%emt 0:02:06]} 24. Be2 {[%emt 0:03:10]} Qb7 {[%emt 0:06:35]} 25. Qd2 {[%emt 0:03:19]} Be7 {[%emt 0:01:22]} 26. Bd6 {[%emt 0:05:34]} Qd7 {[%emt 0:01:00]} 27. Qxa5 {[%emt 0:02:00]} Qxd6 {[%emt 0:00:34]} 28. Qa6 {[%emt 0:01:24]} Qc7 {[%emt 0:00:53]} 29. b4 {[%emt 0:04:52]} cxb4 {[%emt 0:00:09]} 30. axb4 {[%emt 0:00:05]} Bxb4 {[%emt 0:00:09]} 31. Kg2 {[%emt 0:00:35]} Bc5 {[%emt 0:01:20]} 32. Bd1 {[%emt 0:00:28]} Qd7 {[%emt 0:00:46]} 33. Be2 {[%emt 0:00:19]} e5 {[%emt 0:01:01]} 34. Qa5 {[%emt 0:00:34]} Qd6 {[%emt 0:01:23]} 35. Qa6 {[%emt 0:00:30]} Qc7 {[%emt 0:01:06]} 36. Bd1 {[%emt 0:00:29]} f4 {[%emt 0:01:58]} 37. Ba4 {[%emt 0:01:13]} Bxa4 {[%emt 0:07:12]} 38. Qxa4 {[%emt 0:00:01]} f3+ {[%emt 0:02:26]} 39. Kf1 {[%emt 0:00:21]} Qd8 {[%emt 0:00:19]} 40. Ke1 {[%emt 0:01:20]} Qd3 {[%emt 0:01:25]} 41. Qa8+ {[%emt 0:00:53]} Bf8 {[%emt 0:00:15]} 42. Qd5+ {[%emt 0:00:13]} Qxd5 {[%emt 0:00:26]} 43. cxd5 {[%emt 0:00:02]} Kf7 {[%emt 0:00:15]} 44. Kd2 {[%emt 0:00:42]} Bb4+ {[%emt 0:00:06]} 45. Kc2 {[%emt 0:00:05]} Be1 {[%emt 0:00:26]} 46. Kd1 {[%emt 0:00:01]} Bxf2 {[%emt 0:00:11]} 47. g4 {[%emt 0:01:00]} Bxe3 {[%emt 0:00:07]} 48. Ke1 {[%emt 0:00:02]} Bc5 {[%emt 0:00:11]} 0-1